bitfinex/quotes_SOLUSD_20250721
["timestamp","ask_amount","ask_price","bid_price","bid_amount"]
[1753090914308,5.25023658,190.47,190.43,0.03]
[1753090914508,9.37942047,190.44,190.43,0.03]
[1753090914812,2.73491186,190.5,190.43,0.03]
[1753090914813,0.68,190.54,190.44,0.67]
[1753090914983,5.24793819,190.56,190.47,8.69942047]
[1753090915185,2.73483139,190.54,190.48,9.36942047]
[1753090915424,8.69942047,190.53,190.49,38.92]
[1753090915716,8.69942047,190.54,190.5,16.78468397]
[1753090916088,2.73428151,190.55,190.5,17.45468397]
[1753090916288,8.69942047,190.54,190.5,17.45468397]
[1753090916504,8.69942047,190.53,190.49,44.16961376]
[1753090916911,0.68,190.54,190.49,44.16961376]
[1753090917095,8.69942047,190.52,190.49,38.92]
[1753090917294,9.37942047,190.52,190.49,38.92]
[1753090918019,8.69942047,190.52,190.49,44.16957777]
[1753090918187,0.68,190.52,190.49,38.92]
[1753090918593,8.69942047,190.51,190.49,38.92]
[1753090919320,8.69942047,190.52,190.49,38.92]
[1753090919510,29.41423007,190.58,190.5,17.45468397]
[1753090919690,8.69942047,190.57,190.52,16.78468397]
[1753090919896,8.69942047,190.57,190.53,38.96]
[1753090920202,8.69942047,190.57,190.53,39.63]
[1753090920603,8.69942047,190.59,190.54,17.45468397]
[1753090920807,0.06,190.6,190.57,16.78468397]
[1753090921010,0.06,190.6,190.58,38.98]
[1753090921196,8.75942047,190.6,190.58,38.98]
[1753090921704,0.06,190.6,190.58,38.98]
[1753090921916,0.06,190.6,190.59,0.67]
[1753090922222,8.75942047,190.6,190.58,38.98]
[1753090922518,0.68,190.59,190.5,26.67]
[1753090922718,0.68,190.59,190.51,55.72468397]
[1753090922893,8.69942047,190.52,190.51,38.94]
[1753090923694,18.4230705,190.6,190.51,39.6]
[1753090923695,8.69942047,190.53,190.51,39.6]
[1753090923908,8.69942047,190.54,190.51,39.6]
[1753090924115,8.69942047,190.53,190.51,38.94]
[1753090924518,5.247161,190.58,190.51,38.94]
[1753090924519,0.71,190.57,190.51,38.94]
[1753090924836,8.69942047,190.53,190.51,38.94]
[1753090925006,8.69942047,190.54,190.51,44.18905705]
[1753090925200,8.69942047,190.55,190.52,0.66]
[1753090925400,8.69942047,190.54,190.52,0.66]
[1753090925830,8.69942047,190.53,190.51,38.94]
[1753090926022,8.69942047,190.52,190.51,38.94]
[1753090926926,26.0,190.49,190.42,5.25152525]
[1753090927226,26.0,190.49,190.4,0.66]
[1753090927227,8.69942047,190.44,190.4,5.91183502]
[1753090927735,8.69942047,190.44,190.41,16.78468397]
[1753090928024,31.95995756,190.48,190.41,16.78468397]
[1753090928329,8.69942047,190.45,190.41,16.78468397]
[1753090928707,8.69942047,190.46,190.44,0.66]
[1753090928926,8.69942047,190.47,190.44,0.66]
[1753090929237,31.24939443,190.5,190.44,0.66]
[1753090929238,8.69942047,190.46,190.44,0.66]
[1753090929404,8.69942047,190.46,190.44,39.52]
[1753090929733,8.69942047,190.45,190.44,38.86]
[1753090930037,8.69942047,190.45,190.43,0.03]
[1753090930212,8.69942047,190.44,190.43,0.03]
[1753090930832,31.24939443,190.5,190.43,0.03]
[1753090930833,0.71,190.46,190.43,0.03]
[1753090931130,8.69942047,190.44,190.43,0.03]
[1753090931326,0.71,190.49,190.43,0.03]
[1753090931511,8.69942047,190.44,190.43,0.03]
[1753090932614,5.24997846,190.48,190.43,0.03]
[1753090932828,8.69942047,190.44,190.43,0.03]
[1753090934237,14.66041815,190.44,190.43,0.03]
[1753090934424,9.40942047,190.44,190.43,0.03]
[1753090936632,14.66041815,190.44,190.43,0.03]
[1753090937136,9.40942047,190.44,190.43,0.03]
[1753090937309,8.69942047,190.46,190.43,17.47468397]
[1753090937936,8.69942047,190.47,190.43,17.47468397]
[1753090938233,8.69942047,190.46,190.43,17.47468397]
[1753090938432,8.69942047,190.45,190.43,0.03]
[1753090938615,8.69942047,190.44,190.43,0.03]
[1753090938821,9.40942047,190.44,190.43,0.03]
[1753090939831,9.40942047,190.44,190.39,0.02158754]
[1753090940133,8.69942047,190.4,190.39,0.02158754]
[1753090941223,8.69942047,190.41,190.39,0.02158754]
[1753090941431,8.69942047,190.42,190.39,0.68158754]
[1753090941737,8.69942047,190.42,190.4,0.66]
[1753090941937,8.69942047,190.42,190.39,0.02158754]
[1753090942936,8.69942047,190.41,190.39,0.02158754]
[1753090943435,28.73586826,190.45,190.39,0.02158754]
[1753090943436,9.40942047,190.4,190.39,0.02158754]
[1753090943740,8.69942047,190.4,190.39,0.02158754]
[1753090945036,9.40942047,190.4,190.39,0.02158754]
[1753090945253,14.66152131,190.4,190.39,0.02158754]
[1753090945615,26.0,190.38,190.37,0.03]
[1753090945818,34.69942047,190.38,190.37,0.03]
[1753090946035,35.40942047,190.38,190.37,0.03]
[1753090946949,40.66207305,190.38,190.37,0.03]
[1753090947351,35.40942047,190.38,190.37,0.03]
[1753090947551,34.69942047,190.38,190.37,0.03]
[1753090948185,40.66207305,190.38,190.37,0.03]
[1753090949128,31.96265258,190.38,190.37,0.03]
[1753090949328,40.66207305,190.38,190.37,0.03]
[1753090950018,31.96265258,190.38,190.37,0.03]
[1753090950222,40.66207305,190.38,190.37,0.03]
[1753090950538,34.69942047,190.38,190.37,0.03]
[1753090955056,26.0,190.38,190.37,0.03]
[1753090955941,34.69942047,190.38,190.37,0.03]
[1753090956344,35.36942047,190.38,190.37,0.03]
[1753090957649,34.69942047,190.38,190.37,0.03]
[1753090958155,31.25265258,190.38,190.37,0.03]
[1753090958362,26.67,190.38,190.37,0.03]
[1753090958535,31.92265258,190.38,190.37,0.03]
[1753090958941,26.67,190.38,190.37,0.03]
[1753090959469,8.69942047,190.41,190.38,16.78468397]
[1753090959649,8.69942047,190.43,190.4,16.78468397]
[1753090959835,8.69942047,190.43,190.4,17.48468397]
[1753090960036,8.69942047,190.41,190.37,0.73]
[1753090960237,8.69942047,190.41,190.38,16.78468397]
[1753090960469,8.69942047,190.41,190.39,0.7]
[1753090960674,8.69942047,190.41,190.4,0.7]
[1753090960969,8.69942047,190.41,190.38,16.78468397]
[1753090961137,8.69942047,190.41,190.38,17.48468397]
[1753090961343,8.69942047,190.41,190.38,22.73730319]
[1753090961966,0.06,190.43,190.39,0.7]
[1753090962148,8.69942047,190.41,190.39,0.7]
[1753090962682,8.69942047,190.41,190.39,5.95237365]
[1753090962853,8.69942047,190.4,190.37,5.28270651]
[1753090963058,8.69942047,190.4,190.37,5.98270651]
[1753090963448,8.69942047,190.38,190.37,0.03]
[1753090963964,9.36942047,190.38,190.37,0.03]
[1753090964744,8.69942047,190.38,190.37,0.03]
[1753090965473,9.36942047,190.38,190.37,0.03]
[1753090965664,14.62207305,190.38,190.37,0.03]
[1753090969069,2.73633502,190.4,190.37,0.03]
[1753090969374,8.69942047,190.38,190.37,0.03]
[1753090970363,11.43575549,190.4,190.37,0.73]
[1753090970560,0.73,190.43,190.38,0.7]
[1753090970759,8.69942047,190.4,190.38,0.7]
[1753090971155,8.69942047,190.39,190.37,0.03]
[1753090971556,8.69942047,190.39,190.37,5.28283031]
[1753090971752,8.69942047,190.4,190.38,0.7]
[1753090972152,26.0,190.42,190.37,5.28283031]
[1753090972153,8.69942047,190.39,190.37,5.28283031]
[1753090972578,8.69942047,190.38,190.37,0.03]
[1753090973446,9.36942047,190.38,190.37,0.03]
[1753090974081,26.67,190.38,190.37,0.03]
[1753090974461,35.36942047,190.38,190.37,0.03]
[1753090975252,40.62207305,190.38,190.37,0.03]
[1753090975764,31.92265258,190.38,190.37,0.03]
[1753090975963,39.95207305,190.38,190.37,0.03]
[1753090976177,34.69942047,190.38,190.37,0.03]
[1753090976874,26.0,190.38,190.37,0.03]
[1753090977179,35.36942047,190.38,190.37,0.03]
[1753090979258,34.69942047,190.38,190.37,0.03]
[1753090979864,8.69942047,190.38,190.37,0.03]
[1753090980162,14.62207305,190.38,190.37,0.03]
[1753090982462,13.95207305,190.38,190.37,0.03]
[1753090982783,14.62207305,190.38,190.37,0.03]
[1753090984275,40.62207305,190.38,190.37,0.03]
[1753090984484,26.0,190.35,190.33,0.03]
[1753090984789,8.69942047,190.34,190.33,0.03]
[1753090984967,9.35942047,190.34,190.33,0.03]
[1753090985467,14.6131769,190.34,190.33,0.03]
[1753090985874,14.6131769,190.34,190.31,0.83141234]
[1753090985875,22.6778769,190.34,190.31,0.83141234]
[1753090986182,22.6778769,190.34,190.11,0.72]
[1753090986183,26.0,190.16,190.11,0.72]
[1753090986385,8.69942047,190.12,190.11,0.72]
[1753090986565,8.69942047,190.12,190.06,5.26149636]
[1753090986783,8.69942047,190.11,190.06,5.26149636]
[1753090987390,8.69942047,190.12,190.07,26.72]
[1753090987566,8.69942047,190.14,190.08,9.41942047]
[1753090987778,8.69942047,190.14,190.09,43.50468397]
[1753090988078,8.69942047,190.14,190.11,16.78468397]
[1753090988267,8.69942047,190.14,190.12,39.24]
[1753090988457,8.69942047,190.14,190.13,0.72]
[1753090989457,5.25734714,190.21,190.13,5.97944381]
[1753090989662,26.0,190.22,190.14,0.72]
[1753090989864,8.69942047,190.21,190.14,0.72]
[1753090990073,8.69942047,190.2,190.14,0.72]
[1753090990472,0.66,190.23,190.14,0.72]
[1753090990670,8.69942047,190.17,190.14,39.2]
[1753090990986,8.69942047,190.17,190.13,38.48]
[1753090991284,8.69942047,190.17,190.14,0.72]
[1753090991488,31.91707076,190.22,190.08,8.69942047]
[1753090991489,35.35942047,190.19,190.08,8.69942047]
[1753090991667,8.69942047,190.14,190.11,0.72]
[1753090991977,35.35942047,190.19,190.11,0.72]
[1753090992481,8.69942047,190.14,190.11,0.72]
[1753090992779,8.69942047,190.12,190.08,39.26]
[1753090993080,8.69942047,190.12,190.09,0.72]
[1753090993381,8.69942047,190.13,190.1,0.72]
[1753090993588,8.69942047,190.14,190.1,0.72]
[1753090993761,8.69942047,190.14,190.1,39.24]
[1753090993962,8.69942047,190.14,190.11,0.72]
[1753090995086,5.9184459,190.18,190.12,0.72]
[1753090995285,8.69942047,190.14,190.12,0.72]
[1753090996284,8.69942047,190.15,190.13,0.72]
[1753090996585,8.69942047,190.16,190.13,0.72]
[1753090997070,8.69942047,190.15,190.13,0.72]
[1753090997386,8.69942047,190.15,190.12,16.78468397]
[1753090997769,8.69942047,190.15,190.12,17.50468397]
[1753090998092,8.69942047,190.15,190.13,0.03]
[1753090998282,8.69942047,190.16,190.14,0.72]
[1753090998883,8.69942047,190.16,190.13,0.03]
[1753090999082,8.69942047,190.16,190.13,0.75]
[1753091000288,5.25845296,190.17,190.13,0.03]
[1753091000490,8.69942047,190.15,190.13,0.03]
[1753091001777,5.25845296,190.17,190.13,0.03]
[1753091002098,8.69942047,190.16,190.13,0.03]
[1753091002670,8.69942047,190.15,190.13,0.03]
[1753091002870,5.25845296,190.17,190.13,0.03]
[1753091003099,8.69942047,190.15,190.13,0.03]
[1753091003599,8.69942047,190.16,190.14,0.72]
[1753091004508,8.69942047,190.15,190.13,38.39]
[1753091004676,8.65717638,190.18,190.13,38.39]
[1753091004880,8.69942047,190.15,190.13,38.39]
[1753091005091,8.69942047,190.15,190.13,39.11]
[1753091005284,5.97431428,190.15,190.13,39.11]
[1753091006193,7.99716207,190.18,190.14,0.72]
[1753091006373,5.97431428,190.15,190.14,0.72]
[1753091006575,5.97431428,190.15,190.13,38.37]
[1753091006903,5.97431428,190.14,190.13,38.37]
[1753091007274,2.73894758,190.18,190.13,39.09]
[1753091007493,5.97431428,190.2,190.14,2.3059]
[1753091007679,5.97431428,190.2,190.15,0.72]
[1753091007875,5.97431428,190.19,190.15,0.72]
[1753091008177,5.97431428,190.19,190.16,0.72]
[1753091008384,5.97431428,190.19,190.17,38.34]
[1753091008896,5.97431428,190.19,190.17,39.06]
[1753091009194,5.97431428,190.2,190.17,39.06]
[1753091009995,5.97431428,190.2,190.18,38.3]
[1753091010195,28.73867707,190.23,190.18,39.02]
[1753091010395,5.97431428,190.21,190.19,0.72]
[1753091010895,2.73867707,190.23,190.19,0.72]
[1753091011114,26.0,190.26,190.2,0.72]
[1753091011399,26.0,190.26,190.2,39.0]
[1753091011400,5.97431428,190.22,190.2,39.0]
[1753091011571,26.0,190.26,190.2,39.0]
[1753091011774,5.97431428,190.23,190.21,0.72]
[1753091012078,5.97431428,190.23,190.21,5.97728257]
[1753091012272,3.3981702,190.27,190.22,0.72]
[1753091012484,5.97431428,190.23,190.2,38.28]
[1753091012686,5.97431428,190.22,190.19,0.72]
[1753091012887,5.97431428,190.22,190.2,38.26]
[1753091013488,31.91596552,190.26,190.2,38.26]
[1753091013690,5.97431428,190.23,190.2,38.96]
[1753091014101,31.93596552,190.26,190.2,38.24]
[1753091014290,5.97431428,190.22,190.2,38.94]
[1753091014485,5.97431428,190.24,190.21,0.7]
[1753091014692,5.97431428,190.25,190.22,0.7]
[1753091014899,5.97431428,190.25,190.2,38.24]
[1753091015098,5.97431428,190.25,190.23,0.7]
[1753091015290,26.0,190.29,190.24,38.94]
[1753091015490,5.97431428,190.26,190.24,38.94]
[1753091015810,5.97431428,190.25,190.24,38.94]
[1753091016212,7.99338006,190.28,190.24,38.94]
[1753091016384,5.97431428,190.25,190.24,38.94]
[1753091016588,5.97431428,190.25,190.24,38.24]
[1753091018080,7.99338661,190.28,190.24,38.24]
[1753091018286,5.97431428,190.25,190.24,38.24]
[1753091018685,5.97431428,190.26,190.24,38.94]
[1753091019085,5.97431428,190.26,190.24,38.24]
[1753091019489,5.97431428,190.25,190.24,38.94]
[1753091019690,5.97431428,190.26,190.24,38.24]
[1753091019893,5.97431428,190.26,190.24,38.94]
[1753091020110,2.73795293,190.28,190.24,38.94]
[1753091020293,5.97431428,190.25,190.24,38.94]
[1753091020493,7.99346306,190.28,190.24,38.94]
[1753091020713,5.97431428,190.26,190.24,38.94]
[1753091020919,2.73795293,190.28,190.25,0.7]
[1753091021219,6.03431428,190.31,190.26,16.78468397]
[1753091021393,0.06,190.31,190.28,16.78468397]
[1753091021586,0.06,190.31,190.29,0.7]
[1753091021793,0.06,190.31,190.3,38.14]
[1753091021992,6.03431428,190.31,190.3,38.84]
[1753091022194,0.06,190.31,190.3,38.84]
[1753091023402,0.06,190.31,190.3,38.14]
[1753091023809,6.03431428,190.31,190.3,38.14]
[1753091024195,0.06,190.31,190.3,38.14]
[1753091024513,6.03431428,190.31,190.28,2.63933835]
[1753091024817,0.06,190.31,190.29,38.1]
[1753091025107,5.97431428,190.3,190.28,38.1]
[1753091025314,5.97431428,190.29,190.28,38.1]
[1753091025509,6.03431428,190.31,190.28,38.8]
[1753091025810,0.06,190.31,190.29,0.7]
[1753091026409,0.06,190.31,190.3,17.48468397]
[1753091026985,0.06,190.39,190.31,24.57168397]
[1753091027316,0.06,190.39,190.34,5.97431428]
[1753091027317,2.79672519,190.39,190.34,5.97431428]
[1753091027615,2.79672519,190.39,190.36,22.75899825]
[1753091027798,0.06,190.39,190.38,16.78468397]
[1753091028119,0.06,190.39,190.38,23.45899825]
[1753091028502,0.06,190.43,190.4,16.78468397]
[1753091028702,0.06,190.43,190.42,16.78468397]
[1753091029014,6.03431428,190.43,190.37,148.7]
[1753091029320,8.7387884,190.4,190.38,38.12]
[1753091029615,0.06,190.43,190.38,38.12]
[1753091029616,8.7387884,190.42,190.38,38.12]
[1753091029827,0.06,190.43,190.38,38.12]
[1753091029828,0.06,190.43,190.39,0.7]
[1753091029997,0.06,190.43,190.4,25.52347237]
[1753091030192,0.06,190.43,190.42,16.78468397]
[1753091030391,0.06,190.43,190.42,25.52347237]
[1753091030595,0.06,190.43,190.42,17.48468397]
[1753091031019,0.06,190.43,190.37,148.0]
[1753091031020,8.7987884,190.43,190.37,148.0]
[1753091031330,8.7387884,190.41,190.37,148.7]
[1753091031506,0.06,190.43,190.38,38.84]
[1753091031708,8.7987884,190.43,190.38,38.84]
[1753091032015,8.7987884,190.43,190.39,17.48468397]
[1753091032204,8.7987884,190.43,190.4,0.7]
[1753091032400,8.7987884,190.43,190.41,38.16]
[1753091033136,0.06,190.43,190.41,38.16]
[1753091033311,8.7987884,190.43,190.41,38.16]
[1753091033693,8.7387884,190.42,190.41,38.16]
[1753091033915,8.7387884,190.42,190.37,0.7]
[1753091034218,8.7387884,190.42,190.38,38.84]
[1753091034515,0.06,190.43,190.39,26.22347237]
[1753091034817,0.06,190.43,190.4,38.12]
[1753091035009,0.06,190.43,190.41,38.12]
[1753091035216,8.7987884,190.43,190.41,38.12]
[1753091035801,8.7387884,190.42,190.41,38.12]
[1753091036931,13.9903376,190.42,190.35,16.78468397]
[1753091037237,8.7387884,190.4,190.36,38.1]
[1753091037598,8.7387884,190.4,190.37,0.7]
[1753091037832,8.7387884,190.4,190.36,38.1]
[1753091038125,8.7387884,190.41,190.38,0.7]
[1753091038428,8.7387884,190.4,190.39,38.08]
[1753091039006,13.99088924,190.4,190.39,38.08]
[1753091039522,13.99088924,190.4,190.33,8.7387884]
[1753091039523,14.67088924,190.4,190.36,38.06]
[1753091039820,5.93210084,190.4,190.36,38.06]
[1753091040019,8.7387884,190.37,190.36,38.06]
[1753091040227,8.7387884,190.37,190.33,148.7]
[1753091040228,9.4187884,190.37,190.35,38.06]
[1753091040415,8.7387884,190.36,190.35,38.06]
[1753091041225,8.7387884,190.36,190.31,17.48468397]
[1753091041420,0.68,190.39,190.32,38.06]
[1753091041626,0.68,190.39,190.32,38.76]
[1753091041824,8.7387884,190.38,190.33,0.7]
[1753091042003,31.25241539,190.39,190.33,16.78468397]
[1753091042200,8.7387884,190.38,190.34,0.7]
[1753091042410,13.12713218,190.45,190.35,38.74]
[1753091042630,8.7387884,190.4,190.36,16.78468397]
[1753091042817,8.7387884,190.4,190.37,0.69]
[1753091043021,8.7387884,190.4,190.38,38.73]
[1753091043526,8.7987884,190.41,190.38,38.04]
[1753091043734,8.7987884,190.41,190.39,0.69]
[1753091043933,8.7987884,190.41,190.4,0.69]
[1753091044314,8.7987884,190.41,190.38,38.04]
[1753091044613,8.7387884,190.4,190.38,38.04]
[1753091045716,8.7987884,190.41,190.38,38.04]
[1753091046035,8.7987884,190.41,190.38,38.73]
[1753091046630,8.7387884,190.4,190.36,0.69]
[1753091046817,8.7387884,190.4,190.37,38.69]
[1753091047010,8.7387884,190.4,190.38,0.69]
[1753091047326,8.7387884,190.4,190.38,37.98]
[1753091047929,8.7387884,190.39,190.38,37.98]
[1753091048108,8.7387884,190.39,190.31,0.72]
[1753091048109,40.64129199,190.39,190.31,0.72]
[1753091048309,8.7387884,190.32,190.31,38.03]
[1753091048524,8.7387884,190.34,190.31,38.72]
[1753091048739,8.7387884,190.34,190.32,0.69]
[1753091049122,31.25250359,190.39,190.33,0.69]
[1753091049436,34.7387884,190.39,190.34,38.0]
[1753091049615,8.7387884,190.38,190.35,0.69]
[1753091049820,26.0,190.39,190.36,0.69]
[1753091049821,34.7387884,190.39,190.36,0.69]
[1753091050127,26.0,190.39,190.37,38.69]
[1753091050319,8.7387884,190.4,190.37,38.69]
[1753091050521,8.7387884,190.39,190.37,38.69]
[1753091051018,0.06,190.41,190.37,38.0]
[1753091051341,8.7387884,190.4,190.38,0.69]
[1753091052514,8.7987884,190.41,190.39,0.69]
[1753091052910,8.7987884,190.41,190.37,38.0]
[1753091053111,6.01847401,190.41,190.38,0.69]
[1753091053517,5.95847401,190.4,190.37,38.0]
[1753091053942,5.95847401,190.4,190.37,38.69]
[1753091055921,0.06,190.41,190.37,38.69]
[1753091056131,5.95847401,190.4,190.38,0.69]
[1753091057131,0.06,190.41,190.37,38.0]
[1753091057321,5.95847401,190.4,190.39,0.69]
[1753091057730,0.06,190.41,190.39,0.69]
[1753091057946,5.95847401,190.4,190.37,5.25271979]
[1753091058256,5.95847401,190.4,190.38,37.92]
[1753091058415,6.01847401,190.41,190.38,37.92]
[1753091058617,5.95847401,190.4,190.39,0.69]
[1753091058838,0.06,190.41,190.38,37.92]
[1753091059141,5.95847401,190.39,190.33,0.69]
[1753091059348,0.65,190.39,190.34,37.92]
[1753091059637,0.71,190.41,190.34,37.92]
[1753091059823,5.25210084,190.4,190.35,0.69]
[1753091060022,5.90210084,190.4,190.35,0.69]
[1753091060540,5.95847401,190.36,190.34,37.92]
[1753091061037,5.25210084,190.4,190.35,0.69]
[1753091061236,5.95847401,190.37,190.36,0.69]
[1753091061738,5.95847401,190.37,190.34,43.17374412]
[1753091061931,28.73680028,190.39,190.35,0.69]
[1753091062236,5.95847401,190.37,190.35,0.69]
[1753091063323,5.95847401,190.37,190.36,0.69]
[1753091063727,33.9892125,190.39,190.36,0.69]
[1753091063938,8.69527429,190.39,190.37,38.61]
[1753091064145,8.69527429,190.39,190.38,0.69]
[1753091064332,2.73680028,190.39,190.38,0.69]
[1753091064545,8.69527429,190.39,190.38,0.69]
[1753091064963,2.73680028,190.39,190.38,0.69]
[1753091065151,0.06,190.41,190.38,17.47468397]
[1753091065457,0.06,190.41,190.39,5.94229436]
[1753091065659,0.06,190.4,190.39,5.94229436]
[1753091065830,0.06,190.4,190.39,60.64697833]
[1753091066035,0.06,190.4,190.39,55.39468397]
[1753091067360,0.06,190.4,190.39,203.39468397]
[1753091067541,0.06,190.4,190.39,208.64706067]
[1753091068463,0.06,190.4,190.39,214.60553468]
[1753091071648,0.06,190.41,190.4,22.02868397]
[1753091071866,0.06,190.41,190.4,23.43315798]
[1753091073542,0.06,190.41,190.4,17.47468397]
[1753091073759,0.06,190.41,190.4,66.58525882]
[1753091075270,0.06,190.41,190.4,214.58525882]
[1753091076340,0.06,190.41,190.4,240.58525882]
[1753091076746,1e-08,190.41,190.4,253.59538273]
[1753091077257,1e-08,190.41,190.4,258.83938273]
[1753091077855,1e-08,190.41,190.4,253.59538273]
[1753091078373,1e-08,190.41,190.4,232.83938273]
[1753091078768,0.06,190.45,190.43,16.78468397]
[1753091079067,0.06,190.45,190.44,54.68468397]
[1753091079268,0.06,190.45,190.44,61.35315798]
[1753091079775,0.06,190.45,190.44,66.60415566]
[1753091081272,0.06,190.45,190.44,214.60415565]
[1753091083144,0.06,190.45,190.44,221.65580555]
[1753091083545,0.06,190.48,190.45,16.78468397]
[1753091083751,0.06,190.48,190.45,155.76164989]
[1753091084083,0.06,190.48,190.47,5.25017063]
[1753091084273,0.06,190.48,190.47,159.20864463]
[1753091084472,0.06,190.48,190.47,159.91864463]
[1753091086147,0.06,190.48,190.47,197.79864463]
[1753091086348,0.06,190.48,190.47,214.5833286]
[1753091086579,0.06,190.48,190.47,176.7033286]
[1753091086781,0.06,190.48,190.47,214.5833286]
[1753091090852,0.06,190.48,190.47,221.6349785]
[1753091093257,0.06,190.48,190.47,183.7549785]
[1753091093457,0.06,190.48,190.47,221.6349785]
[1753091095883,0.06,190.48,190.47,221.6349785]
[1753091096460,0.76,190.48,190.47,16.78468397]
[1753091096665,0.06,190.48,190.47,22.0348546]
[1753091096888,0.06,190.48,190.47,66.56332861]
[1753091097697,0.06,190.48,190.47,221.6149785]
[1753091097870,0.06,190.49,190.48,42.78468397]
[1753091098060,0.06,190.49,190.48,61.75470288]
[1753091098466,0.06,190.49,190.48,99.61470288]
[1753091099758,1e-08,190.49,190.48,126.05870288]
[1753091099978,1e-08,190.49,190.48,139.62737689]
[1753091100173,1e-08,190.52,190.51,32.49468397]
[1753091100469,0.1,190.59,190.58,42.78468397]
[1753091100670,0.1,190.59,190.58,93.95091899]
[1753091100870,0.1,190.59,190.58,56.80091899]
[1753091101071,0.1,190.59,190.58,23.45315798]
[1753091101277,6.75847401,190.59,190.52,5.95847401]
[1753091101581,6.65847401,190.58,190.53,16.78468397]
[1753091101783,0.7,190.57,190.54,37.86]
[1753091101987,5.95847401,190.58,190.54,37.86]
[1753091102289,0.7,190.56,190.55,37.86]
[1753091102788,6.65847401,190.56,190.55,37.86]
[1753091102988,0.7,190.56,190.55,37.86]
[1753091104072,5.95847401,190.58,190.55,37.86]
[1753091104270,0.7,190.57,190.55,37.86]
[1753091106389,5.34692573,190.59,190.56,16.78468397]
[1753091106390,6.05847401,190.59,190.56,16.78468397]
[1753091106588,0.1,190.59,190.57,37.84]
[1753091106884,0.1,190.59,190.58,16.78468397]
[1753091107073,0.1,190.59,190.58,23.46315798]
[1753091107400,0.1,190.59,190.58,22.74315798]
[1753091107603,0.1,190.59,190.58,27.99029828]
[1753091107982,0.1,190.59,190.58,28.71029828]
[1753091108990,6.75847401,190.59,190.57,147.99999999]
[1753091109188,0.1,190.59,190.58,37.84]
[1753091109789,0.1,190.59,190.58,54.62468397]
[1753091110101,0.8,190.59,190.58,37.84]
[1753091110781,6.75847401,190.59,190.58,37.84]
[1753091111403,6.75847401,190.59,190.52,16.81468397]
[1753091111404,12.00539783,190.59,190.52,16.81468397]
[1753091111579,5.95847401,190.57,190.54,16.78468397]
[1753091111913,5.95847401,190.58,190.55,37.84]
[1753091112206,6.65847401,190.58,190.55,37.84]
[1753091112883,11.90564672,190.58,190.55,37.84]
[1753091113202,0.7,190.57,190.55,37.84]
[1753091113412,5.95847401,190.58,190.55,37.84]
[1753091114104,6.65847401,190.58,190.55,37.84]
[1753091114598,5.95847401,190.58,190.55,37.84]
[1753091114800,0.1,190.59,190.56,17.50468397]
[1753091115004,0.1,190.59,190.57,38.56]
[1753091115197,0.1,190.59,190.58,16.78468397]
[1753091115396,0.1,190.59,190.58,17.50468397]
[1753091115595,0.1,190.59,190.58,23.46315798]
[1753091116084,0.1,190.59,190.55,148.71999999]
[1753091116289,6.75847401,190.59,190.56,54.60468397]
[1753091116494,6.05847401,190.59,190.56,54.60468397]
[1753091116696,6.05847401,190.59,190.57,37.82]
[1753091116887,6.75847401,190.59,190.57,37.82]
[1753091117084,0.1,190.59,190.57,37.82]
[1753091118001,6.75847401,190.59,190.57,37.82]
[1753091118606,6.75847401,190.59,190.58,37.82]
[1753091118984,6.05847401,190.59,190.58,37.82]
[1753091120080,0.1,190.59,190.58,37.82]
[1753091121688,0.1,190.59,190.56,22.03233967]